[Event "Early-Titled-Tuesday-Blitz-May-28-2024"]
[Site "Chess.com"]
[Date "2024.05.28"]
[Round "2"]
[White "yaguigor"]
[Black "David_Arutinian"]
[Result "1-0"]
[WhiteElo "2594"]
[BlackElo "2838"]
[TimeControl "180+1"]
[EndTime "8:18:59 PDT"]
[Termination "yaguigor won by resignation"]

1. e4 {[%clk 0:02:36.6]} 1... c6 {[%clk 0:02:59.9]} 2. d4 {[%clk 0:02:35.7]}
2... d5 {[%clk 0:03:00.8]} 3. e5 {[%clk 0:02:35.4]} 3... Bf5 {[%clk 0:03:01.4]}
4. h4 {[%clk 0:02:33.3]} 4... h5 {[%clk 0:03:01.9]} 5. Bd3 {[%clk 0:02:32.6]}
5... Bxd3 {[%clk 0:03:01.9]} 6. Qxd3 {[%clk 0:02:33.5]} 6... Qa5+ {[%clk
0:03:02.4]} 7. Nd2 {[%clk 0:02:32.9]} 7... e6 {[%clk 0:03:02.3]} 8. Nf3 {[%clk
0:02:30.1]} 8... Ne7 {[%clk 0:03:02.8]} 9. O-O {[%clk 0:02:28.6]} 9... Nf5
{[%clk 0:03:03.3]} 10. c4 {[%clk 0:02:23.3]} 10... Be7 {[%clk 0:03:03.2]} 11.
cxd5 {[%clk 0:02:21.5]} 11... cxd5 {[%clk 0:03:02.7]} 12. Nb3 {[%clk 0:02:18]}
12... Qa6 {[%clk 0:03:01.7]} 13. Qxa6 {[%clk 0:02:16.7]} 13... Nxa6 {[%clk
0:03:01.5]} 14. Bg5 {[%clk 0:02:15.8]} 14... f6 {[%clk 0:03:01.7]} 15. exf6
{[%clk 0:02:01.3]} 15... gxf6 {[%clk 0:03:01.4]} 16. Bd2 {[%clk 0:02:00.3]}
16... Kd7 {[%clk 0:03:00.7]} 17. a3 {[%clk 0:01:58]} 17... Rac8 {[%clk
0:02:54.1]} 18. Rac1 {[%clk 0:01:51.2]} 18... b6 {[%clk 0:02:53.7]} 19. Rxc8
{[%clk 0:01:48]} 19... Rxc8 {[%clk 0:02:53.3]} 20. Rc1 {[%clk 0:01:48.7]} 20...
Rxc1+ {[%clk 0:02:53.9]} 21. Nxc1 {[%clk 0:01:43.3]} 21... Nb8 {[%clk
0:02:47.5]} 22. Kf1 {[%clk 0:01:41.3]} 22... Nc6 {[%clk 0:02:47.7]} 23. Bc3
{[%clk 0:01:38.8]} 23... Bd6 {[%clk 0:02:46.2]} 24. Nd3 {[%clk 0:01:37.2]} 24...
a5 {[%clk 0:02:42.4]} 25. a4 {[%clk 0:01:36.1]} 25... Nfe7 {[%clk 0:02:36.1]}
26. Ke2 {[%clk 0:01:31.5]} 26... Ng6 {[%clk 0:02:36]} 27. g3 {[%clk 0:01:31]}
27... e5 {[%clk 0:02:35.7]} 28. Nde1 {[%clk 0:01:25.8]} 28... e4 {[%clk
0:02:35.5]} 29. Nd2 {[%clk 0:01:22.2]} 29... f5 {[%clk 0:02:35.3]} 30. Ng2
{[%clk 0:01:19.5]} 30... f4 {[%clk 0:02:31.2]} 31. gxf4 {[%clk 0:01:16.1]} 31...
Nxf4+ {[%clk 0:02:25.2]} 32. Nxf4 {[%clk 0:01:14.4]} 32... Bxf4 {[%clk
0:02:26.1]} 33. Nf1 {[%clk 0:01:14]} 33... Ke6 {[%clk 0:02:25.7]} 34. f3 {[%clk
0:01:04.1]} 34... Kf5 {[%clk 0:02:24.2]} 35. b3 {[%clk 0:01:04.4]} 35... Ne7
{[%clk 0:02:21.3]} 36. Bd2 {[%clk 0:01:01.5]} 36... Ng6 {[%clk 0:02:14.7]} 37.
Be1 {[%clk 0:00:47.5]} 37... Bd6 {[%clk 0:01:52.9]} 38. Ne3+ {[%clk 0:00:45.4]}
38... Ke6 {[%clk 0:01:52.8]} 39. fxe4 {[%clk 0:00:45.2]} 39... dxe4 {[%clk
0:01:53.1]} 40. d5+ {[%clk 0:00:45.1]} 40... Kd7 {[%clk 0:01:48.8]} 41. Nf5
{[%clk 0:00:44.7]} 41... Bc5 {[%clk 0:01:41.6]} 42. Bf2 {[%clk 0:00:41.6]} 42...
Nf4+ {[%clk 0:01:41.3]} 43. Kf1 {[%clk 0:00:41.1]} 43... Nxd5 {[%clk 0:01:34.8]}
44. Bxc5 {[%clk 0:00:39.4]} 44... bxc5 {[%clk 0:01:35.7]} 45. Ke2 {[%clk
0:00:34.1]} 45... Nf6 {[%clk 0:01:23.4]} 46. Ke3 {[%clk 0:00:32.8]} 46... Ke6
{[%clk 0:01:24]} 47. Kf4 {[%clk 0:00:31.9]} 47... Nd5+ {[%clk 0:01:23.3]} 48.
Kxe4 {[%clk 0:00:31.5]} 48... Nc3+ {[%clk 0:01:20.2]} 49. Kf4 {[%clk 0:00:30.8]}
49... Ne2+ {[%clk 0:01:20.5]} 50. Ke4 {[%clk 0:00:30.4]} 50... Nc1 {[%clk
0:01:20.6]} 51. Ng7+ {[%clk 0:00:29.9]} 51... Kd6 {[%clk 0:01:16.6]} 52. Nxh5
{[%clk 0:00:29.4]} 52... Nxb3 {[%clk 0:01:17.2]} 53. Nf4 {[%clk 0:00:25.1]}
53... Nd2+ {[%clk 0:01:17]} 54. Kd3 {[%clk 0:00:24.2]} 54... Nf3 {[%clk
0:01:15.8]} 55. h5 {[%clk 0:00:23.9]} 55... Ne5+ {[%clk 0:01:16.1]} 56. Kc3
{[%clk 0:00:22.1]} 56... Ng4 {[%clk 0:01:16.6]} 57. Kc4 {[%clk 0:00:21.2]} 57...
Ne3+ {[%clk 0:01:16.9]} 58. Kb5 {[%clk 0:00:20.7]} 58... c4 {[%clk 0:01:16.3]}
59. h6 {[%clk 0:00:19.6]} 59... Ke5 {[%clk 0:01:10.6]} 60. h7 {[%clk 0:00:19.2]}
60... Kxf4 {[%clk 0:01:11.2]} 61. h8=Q {[%clk 0:00:19.5]} 61... Ke4 {[%clk
0:01:11.9]} 62. Qc3 {[%clk 0:00:18]} 62... Kf3 {[%clk 0:01:08.4]} 63. Kxa5
{[%clk 0:00:17.8]} 63... Ke2 {[%clk 0:01:08.7]} 64. Kb4 {[%clk 0:00:15.3]} 64...
Nd5+ {[%clk 0:01:08.1]} 65. Kxc4 {[%clk 0:00:14]} 65... Nxc3 {[%clk 0:01:09]}
66. Kxc3 {[%clk 0:00:14.3]} 66... Ke3 {[%clk 0:01:09.8]} 67. a5 {[%clk
0:00:14.9]} 67... Ke4 {[%clk 0:01:10.4]} 68. a6 {[%clk 0:00:15.2]} 1-0

[Event "Early-Titled-Tuesday-Blitz-May-28-2024"]
[Site "Chess.com"]
[Date "2024.05.28"]
[Round "2"]
[White "PabloZarnicki"]
[Black "Kezin_Roman"]
[Result "0-1"]
[WhiteElo "2556"]
[BlackElo "2787"]
[TimeControl "180+1"]
[EndTime "8:18:59 PDT"]
[Termination "Kezin_Roman won on time"]

1. e4 {[%clk 0:02:14.4]} 1... c5 {[%clk 0:02:58.3]} 2. Nf3 {[%clk 0:02:14.5]}
2... e6 {[%clk 0:02:58.9]} 3. d3 {[%clk 0:02:14.5]} 3... Nc6 {[%clk 0:02:59.2]}
4. g3 {[%clk 0:02:15.3]} 4... g6 {[%clk 0:02:59.7]} 5. Bg5 {[%clk 0:02:14.6]}
5... Qb6 {[%clk 0:02:49.8]} 6. Nbd2 {[%clk 0:02:14.3]} 6... Qxb2 {[%clk
0:02:43.2]} 7. Nc4 {[%clk 0:02:14.4]} 7... Qg7 {[%clk 0:02:43]} 8. Bg2 {[%clk
0:02:13.5]} 8... d6 {[%clk 0:02:42.9]} 9. O-O {[%clk 0:02:12.9]} 9... Nf6 {[%clk
0:02:43.3]} 10. Qd2 {[%clk 0:02:05.5]} 10... h6 {[%clk 0:02:43]} 11. Be3 {[%clk
0:02:04.4]} 11... e5 {[%clk 0:02:37.5]} 12. h3 {[%clk 0:02:02.9]} 12... Be7
{[%clk 0:02:33]} 13. c3 {[%clk 0:02:02.1]} 13... Be6 {[%clk 0:02:30.7]} 14. Rab1
{[%clk 0:01:51.6]} 14... b6 {[%clk 0:02:25.8]} 15. Nh2 {[%clk 0:01:40.4]} 15...
g5 {[%clk 0:02:23.1]} 16. Kh1 {[%clk 0:01:39.4]} 16... d5 {[%clk 0:02:11]} 17.
exd5 {[%clk 0:01:35]} 17... Nxd5 {[%clk 0:02:11.9]} 18. f4 {[%clk 0:01:31.9]}
18... exf4 {[%clk 0:01:59.4]} 19. gxf4 {[%clk 0:01:32.8]} 19... gxf4 {[%clk
0:01:59.7]} 20. Bxf4 {[%clk 0:01:32.6]} 20... O-O-O {[%clk 0:02:00.1]} 21. a4
{[%clk 0:01:23.8]} 21... Qxc3 {[%clk 0:01:51]} 22. Qxc3 {[%clk 0:01:18.1]} 22...
Nxc3 {[%clk 0:01:51.9]} 23. Bxc6 {[%clk 0:01:18.4]} 23... Nxb1 {[%clk
0:01:52.2]} 24. Rxb1 {[%clk 0:01:18.1]} 24... Rxd3 {[%clk 0:01:52.9]} 25. Ne5
{[%clk 0:01:17.9]} 25... Rd4 {[%clk 0:01:49.4]} 26. Be3 {[%clk 0:01:17.7]} 26...
Rb4 {[%clk 0:01:46.9]} 27. Rc1 {[%clk 0:01:10.4]} 27... Rd8 {[%clk 0:01:34.9]}
28. Bg2 {[%clk 0:01:07.7]} 28... Rb3 {[%clk 0:01:33.2]} 29. Bf4 {[%clk
0:01:00.4]} 29... Bg5 {[%clk 0:01:30.5]} 30. Bxg5 {[%clk 0:00:58]} 30... hxg5
{[%clk 0:01:31.4]} 31. a5 {[%clk 0:00:58]} 31... Kc7 {[%clk 0:01:30.8]} 32.
axb6+ {[%clk 0:00:56.7]} 32... axb6 {[%clk 0:01:28.1]} 33. Ra1 {[%clk
0:00:54.4]} 33... Kd6 {[%clk 0:01:26.9]} 34. Nc6 {[%clk 0:00:53.6]} 34... Rc8
{[%clk 0:01:19.8]} 35. Rd1+ {[%clk 0:00:52.9]} 35... Kc7 {[%clk 0:01:20.1]} 36.
Ng4 {[%clk 0:00:48.3]} 36... Rh8 {[%clk 0:01:11]} 37. Kg1 {[%clk 0:00:46.5]}
37... Rhxh3 {[%clk 0:01:07.6]} 38. Bxh3 {[%clk 0:00:45.4]} 38... Rxh3 {[%clk
0:01:08.5]} 39. Nge5 {[%clk 0:00:42.1]} 39... f6 {[%clk 0:01:08.3]} 40. Nd8
{[%clk 0:00:42.1]} 40... Bb3 {[%clk 0:00:57.2]} 41. Rd7+ {[%clk 0:00:33.6]}
41... Kc8 {[%clk 0:00:57.5]} 42. Ndc6 {[%clk 0:00:15.4]} 42... fxe5 {[%clk
0:00:56.5]} 43. Re7 {[%clk 0:00:16.3]} 43... Bd5 {[%clk 0:00:49.9]} 44. Na7+
{[%clk 0:00:16.4]} 44... Kb8 {[%clk 0:00:49]} 45. Rxe5 {[%clk 0:00:17.3]} 45...
Kxa7 {[%clk 0:00:48.8]} 46. Rxd5 {[%clk 0:00:17.5]} 46... g4 {[%clk 0:00:48.1]}
0-1

[Event "Early-Titled-Tuesday-Blitz-May-28-2024"]
[Site "Chess.com"]
[Date "2024.05.28"]
[Round "2"]
[White "Kunalm64"]
[Black "h4parah5"]
[Result "1-0"]
[WhiteElo "2645"]
[BlackElo "3002"]
[TimeControl "180+1"]
[EndTime "8:19:05 PDT"]
[Termination "Kunalm64 won by resignation"]

1. e4 {[%clk 0:03:00.9]} 1... c5 {[%clk 0:02:59.7]} 2. Nf3 {[%clk 0:03:00.9]}
2... Nc6 {[%clk 0:02:59.9]} 3. Bb5 {[%clk 0:03:00.8]} 3... e6 {[%clk 0:02:59.8]}
4. O-O {[%clk 0:02:59.6]} 4... Nge7 {[%clk 0:02:59.7]} 5. d4 {[%clk 0:02:59.1]}
5... cxd4 {[%clk 0:02:58.8]} 6. Nxd4 {[%clk 0:02:59.7]} 6... a6 {[%clk
0:02:59.3]} 7. Nxc6 {[%clk 0:02:58.8]} 7... bxc6 {[%clk 0:02:51.2]} 8. Bd3
{[%clk 0:02:59.3]} 8... d5 {[%clk 0:02:49.9]} 9. c4 {[%clk 0:02:58.2]} 9... d4
{[%clk 0:02:44.6]} 10. e5 {[%clk 0:02:56.2]} 10... c5 {[%clk 0:02:42.3]} 11. Nd2
{[%clk 0:02:55.2]} 11... Bb7 {[%clk 0:02:36.5]} 12. Qe2 {[%clk 0:02:52.6]} 12...
Ng6 {[%clk 0:02:35.2]} 13. f4 {[%clk 0:02:51.5]} 13... Be7 {[%clk 0:02:30.3]}
14. g3 {[%clk 0:02:50.4]} 14... O-O {[%clk 0:02:28.4]} 15. h4 {[%clk 0:02:50]}
15... f5 {[%clk 0:02:19.8]} 16. exf6 {[%clk 0:02:47]} 16... Bxf6 {[%clk
0:02:19.3]} 17. Ne4 {[%clk 0:02:47]} 17... Bxh4 {[%clk 0:01:50.2]} 18. gxh4
{[%clk 0:02:43.4]} 18... Qxh4 {[%clk 0:01:49.8]} 19. Qh2 {[%clk 0:02:29.7]}
19... Qg4+ {[%clk 0:01:44.1]} 20. Qg3 {[%clk 0:02:29]} 20... Qh5 {[%clk
0:01:43.9]} 21. Bd2 {[%clk 0:02:16.9]} 21... e5 {[%clk 0:01:36.6]} 22. f5 {[%clk
0:02:08.9]} 22... Rxf5 {[%clk 0:01:26.8]} 23. Rxf5 {[%clk 0:02:07.7]} 23... Qxf5
{[%clk 0:01:27.7]} 24. Nd6 {[%clk 0:01:30.7]} 24... Qf3 {[%clk 0:01:16.5]} 25.
Qxf3 {[%clk 0:01:19.8]} 25... Bxf3 {[%clk 0:01:17.4]} 26. Be4 {[%clk 0:01:16.3]}
26... Bxe4 {[%clk 0:01:15]} 27. Nxe4 {[%clk 0:01:15.9]} 27... Rc8 {[%clk
0:01:15.9]} 28. a3 {[%clk 0:01:11.2]} 28... Nf8 {[%clk 0:01:08.5]} 29. Rc1
{[%clk 0:01:04.3]} 29... Nd7 {[%clk 0:01:05.1]} 30. b4 {[%clk 0:01:03]} 30... h6
{[%clk 0:00:56.5]} 31. b5 {[%clk 0:01:01.6]} 31... Kf8 {[%clk 0:00:50.3]} 32. a4
{[%clk 0:01:00.8]} 32... Ke7 {[%clk 0:00:48.9]} 33. a5 {[%clk 0:00:57.7]} 33...
Nf6 {[%clk 0:00:42.1]} 34. Nxc5 {[%clk 0:00:35.9]} 34... e4 {[%clk 0:00:28.3]}
35. Bb4 {[%clk 0:00:29.5]} 35... e3 {[%clk 0:00:28.3]} 36. b6 {[%clk 0:00:20.4]}
36... Ke8 {[%clk 0:00:24.1]} 37. Nxa6 {[%clk 0:00:20.1]} 37... Nd7 {[%clk
0:00:23.3]} 38. b7 {[%clk 0:00:19.7]} 38... Rc6 {[%clk 0:00:22.2]} 39. b8=Q+
{[%clk 0:00:10.8]} 39... Nxb8 {[%clk 0:00:21.7]} 40. Nxb8 {[%clk 0:00:11.3]}
40... Rg6+ {[%clk 0:00:20.9]} 41. Kf1 {[%clk 0:00:10.8]} 41... d3 {[%clk
0:00:21.2]} 42. Re1 {[%clk 0:00:10.1]} 42... Rf6+ {[%clk 0:00:21.1]} 43. Kg2
{[%clk 0:00:09.9]} 43... e2 {[%clk 0:00:19.1]} 44. a6 {[%clk 0:00:09.7]} 44...
Rb6 {[%clk 0:00:10.2]} 45. a7 {[%clk 0:00:09.5]} 45... Rxb4 {[%clk 0:00:10.8]}
46. a8=Q {[%clk 0:00:09.4]} 46... Kf7 {[%clk 0:00:11.7]} 47. Qd5+ {[%clk
0:00:09.4]} 1-0

[Event "Early-Titled-Tuesday-Blitz-May-28-2024"]
[Site "Chess.com"]
[Date "2024.05.28"]
[Round "2"]
[White "Chernov_Alexander_A"]
[Black "Silvederione"]
[Result "1-0"]
[WhiteElo "2307"]
[BlackElo "2500"]
[TimeControl "180+1"]
[EndTime "8:19:08 PDT"]
[Termination "Chernov_Alexander_A won by resignation"]

1. d4 {[%clk 0:03:00.9]} 1... Nf6 {[%clk 0:02:59.9]} 2. Nc3 {[%clk 0:02:58.8]}
2... d5 {[%clk 0:02:59.5]} 3. Bg5 {[%clk 0:02:57.6]} 3... Nbd7 {[%clk
0:02:59.3]} 4. Nf3 {[%clk 0:02:53.9]} 4... c5 {[%clk 0:02:54.7]} 5. e3 {[%clk
0:02:53.7]} 5... e6 {[%clk 0:02:53.8]} 6. Bd3 {[%clk 0:02:53.3]} 6... Be7 {[%clk
0:02:54.1]} 7. O-O {[%clk 0:02:52.3]} 7... O-O {[%clk 0:02:54.7]} 8. Re1 {[%clk
0:02:49.4]} 8... h6 {[%clk 0:02:54.5]} 9. Bh4 {[%clk 0:02:48.9]} 9... a6 {[%clk
0:02:54.7]} 10. a4 {[%clk 0:02:47.5]} 10... c4 {[%clk 0:02:42.4]} 11. Bf1 {[%clk
0:02:46.1]} 11... Qb6 {[%clk 0:02:42.5]} 12. Rb1 {[%clk 0:02:44.3]} 12... Qc6
{[%clk 0:02:40.1]} 13. Ne5 {[%clk 0:02:42.6]} 13... Qc7 {[%clk 0:02:31.2]} 14.
Bg3 {[%clk 0:02:30.9]} 14... Nxe5 {[%clk 0:02:26.9]} 15. dxe5 {[%clk 0:02:27.3]}
15... Nd7 {[%clk 0:02:24.5]} 16. e4 {[%clk 0:02:27.1]} 16... dxe4 {[%clk
0:01:57.2]} 17. Nxe4 {[%clk 0:02:17.7]} 17... Rd8 {[%clk 0:01:57.2]} 18. Qh5
{[%clk 0:02:12.9]} 18... b5 {[%clk 0:01:54.2]} 19. b3 {[%clk 0:01:40.8]} 19...
Bb7 {[%clk 0:01:43.3]} 20. Nf6+ {[%clk 0:01:39.8]} 20... gxf6 {[%clk 0:01:13.9]}
21. exf6 {[%clk 0:01:32.7]} 21... Bd6 {[%clk 0:01:13.5]} 22. Qxh6 {[%clk
0:01:29.9]} 22... Nxf6 {[%clk 0:01:12.4]} 23. Bxd6 {[%clk 0:01:05.4]} 23... Qxd6
{[%clk 0:01:01.2]} 24. Qxf6 {[%clk 0:01:05]} 24... Qd4 {[%clk 0:01:01.2]} 25.
Qg5+ {[%clk 0:00:54.5]} 25... Qg7 {[%clk 0:00:58.2]} 26. Qe7 {[%clk 0:00:54.1]}
26... Bd5 {[%clk 0:00:51.7]} 27. Re3 {[%clk 0:00:53.6]} 27... Re8 {[%clk
0:00:41.6]} 28. Qh4 {[%clk 0:00:48.6]} 28... Kf8 {[%clk 0:00:36.3]} 29. Rg3
{[%clk 0:00:47.7]} 29... Qe5 {[%clk 0:00:36.3]} 30. Rg5 {[%clk 0:00:37.5]} 30...
Qf6 {[%clk 0:00:34.5]} 31. Re1 {[%clk 0:00:34.7]} 31... Ke7 {[%clk 0:00:32.1]}
32. Ree5 {[%clk 0:00:31]} 32... Rh8 {[%clk 0:00:25.8]} 33. Qg3 {[%clk 0:00:30]}
33... cxb3 {[%clk 0:00:19]} 34. cxb3 {[%clk 0:00:28.6]} 34... Bxb3 {[%clk
0:00:18.7]} 35. Qxb3 {[%clk 0:00:26.5]} 35... Rad8 {[%clk 0:00:18.3]} 36. Qb4+
{[%clk 0:00:25.2]} 36... Ke8 {[%clk 0:00:18.2]} 37. axb5 {[%clk 0:00:23.5]}
37... Rd1 {[%clk 0:00:17.8]} 38. bxa6 {[%clk 0:00:20.5]} 38... Qf4 {[%clk
0:00:18.1]} 39. Qxf4 {[%clk 0:00:19.5]} 39... Ke7 {[%clk 0:00:17.1]} 40. Rg7
{[%clk 0:00:18.3]} 40... Rf8 {[%clk 0:00:16.1]} 41. Qg5+ {[%clk 0:00:18]} 41...
Kd6 {[%clk 0:00:16.1]} 42. Ra5 {[%clk 0:00:16.4]} 42... Rb8 {[%clk 0:00:15.5]}
43. Qc5+ {[%clk 0:00:14.7]} 43... Kd7 {[%clk 0:00:15.3]} 44. Rxf7+ {[%clk
0:00:14.3]} 1-0

[Event "Early-Titled-Tuesday-Blitz-May-28-2024"]
[Site "Chess.com"]
[Date "2024.05.28"]
[Round "2"]
[White "NikFil2013"]
[Black "FischerKasparow"]
[Result "1-0"]
[WhiteElo "2458"]
[BlackElo "2103"]
[TimeControl "180+1"]
[EndTime "8:19:11 PDT"]
[Termination "NikFil2013 won on time"]

1. d4 {[%clk 0:03:00.9]} 1... Nf6 {[%clk 0:02:50.1]} 2. c4 {[%clk 0:03:01.1]}
2... c5 {[%clk 0:02:50.1]} 3. d5 {[%clk 0:03:00.9]} 3... b5 {[%clk 0:02:50.8]}
4. cxb5 {[%clk 0:03:01.7]} 4... a6 {[%clk 0:02:51.4]} 5. bxa6 {[%clk 0:03:02.5]}
5... Bxa6 {[%clk 0:02:51.7]} 6. Nc3 {[%clk 0:03:03.1]} 6... g6 {[%clk
0:02:51.4]} 7. e4 {[%clk 0:03:03.5]} 7... Bxf1 {[%clk 0:02:49.6]} 8. Kxf1 {[%clk
0:03:04.4]} 8... d6 {[%clk 0:02:50]} 9. Nf3 {[%clk 0:03:05.3]} 9... Bg7 {[%clk
0:02:50.2]} 10. g3 {[%clk 0:03:05.7]} 10... Nbd7 {[%clk 0:02:50.2]} 11. Kg2
{[%clk 0:03:06.4]} 11... O-O {[%clk 0:02:50.2]} 12. a4 {[%clk 0:03:06.7]} 12...
Ra6 {[%clk 0:02:48.6]} 13. Qe2 {[%clk 0:03:06.3]} 13... Qa8 {[%clk 0:02:47.8]}
14. Ra3 {[%clk 0:03:02.2]} 14... Rc8 {[%clk 0:02:41.9]} 15. b3 {[%clk
0:02:59.9]} 15... Ng4 {[%clk 0:02:30.2]} 16. Nb5 {[%clk 0:02:54.9]} 16... c4
{[%clk 0:02:22.1]} 17. Nd2 {[%clk 0:02:10.9]} 17... Nge5 {[%clk 0:02:18]} 18. f4
{[%clk 0:01:58]} 18... Nd3 {[%clk 0:01:59.1]} 19. Nxc4 {[%clk 0:01:52.3]} 19...
Nxc1 {[%clk 0:01:58.6]} 20. Rxc1 {[%clk 0:01:53.2]} 20... Nc5 {[%clk 0:01:58.4]}
21. a5 {[%clk 0:01:09.2]} 21... f5 {[%clk 0:01:35.8]} 22. Nb6 {[%clk 0:01:03.4]}
22... Rxb6 {[%clk 0:01:34.9]} 23. axb6 {[%clk 0:01:03.5]} 23... Qb7 {[%clk
0:01:33.2]} 24. Na7 {[%clk 0:00:33.4]} 24... Re8 {[%clk 0:01:07.9]} 25. Qb5
{[%clk 0:00:30.5]} 25... Kf7 {[%clk 0:00:52.7]} 26. Qc6 {[%clk 0:00:15.9]} 26...
Qb8 {[%clk 0:00:52.6]} 27. Rc2 {[%clk 0:00:11.4]} 27... fxe4 {[%clk 0:00:40.5]}
28. b4 {[%clk 0:00:11.7]} 28... Nd3 {[%clk 0:00:39]} 29. b5 {[%clk 0:00:10.5]}
29... Ne1+ {[%clk 0:00:35.9]} 30. Kh3 {[%clk 0:00:07.8]} 30... Nxc2 {[%clk
0:00:31.8]} 31. Qxc2 {[%clk 0:00:08.7]} 31... Qxb6 {[%clk 0:00:31.7]} 32. Qxe4
{[%clk 0:00:09.3]} 32... Qg1 {[%clk 0:00:24]} 33. Qe6+ {[%clk 0:00:09.1]} 33...
Kf8 {[%clk 0:00:22.7]} 34. Qe2 {[%clk 0:00:05.7]} 34... Bd4 {[%clk 0:00:12.2]}
35. Nc6 {[%clk 0:00:04.9]} 35... Bc5 {[%clk 0:00:11.2]} 36. Rb3 {[%clk
0:00:02.2]} 36... Bb6 {[%clk 0:00:09.7]} 37. Qf3 {[%clk 0:00:01.7]} 37... Ra8
{[%clk 0:00:07.2]} 38. Rd3 {[%clk 0:00:02.6]} 38... Ra2 {[%clk 0:00:03.9]} 39.
Qe4 {[%clk 0:00:01]} 39... Qxh2+ {[%clk 0:00:02.4]} 40. Kg4 {[%clk 0:00:01.9]}
1-0

[Event "Early-Titled-Tuesday-Blitz-May-28-2024"]
[Site "Chess.com"]
[Date "2024.05.28"]
[Round "2"]
[White "Dexter_Dyke"]
[Black "abelmat"]
[Result "1-0"]
[WhiteElo "2450"]
[BlackElo "2044"]
[TimeControl "180+1"]
[EndTime "8:19:19 PDT"]
[Termination "Dexter_Dyke won by checkmate"]

1. e4 {[%clk 0:03:00.9]} 1... e6 {[%clk 0:02:59.7]} 2. d4 {[%clk 0:03:00.5]}
2... d5 {[%clk 0:03:00.6]} 3. Nc3 {[%clk 0:03:00.9]} 3... dxe4 {[%clk
0:03:00.5]} 4. Nxe4 {[%clk 0:03:00.7]} 4... Nd7 {[%clk 0:03:01.4]} 5. Nf3 {[%clk
0:03:00.4]} 5... Ngf6 {[%clk 0:03:01.7]} 6. Bg5 {[%clk 0:02:59.8]} 6... Be7
{[%clk 0:03:01.1]} 7. Nxf6+ {[%clk 0:03:00.2]} 7... Bxf6 {[%clk 0:03:00.2]} 8.
h4 {[%clk 0:03:00.3]} 8... b6 {[%clk 0:02:58.7]} 9. Bd3 {[%clk 0:02:58.1]} 9...
Bb7 {[%clk 0:02:58.9]} 10. Qe2 {[%clk 0:02:58.5]} 10... h6 {[%clk 0:02:58.1]}
11. Be3 {[%clk 0:02:56.1]} 11... O-O {[%clk 0:02:57.8]} 12. O-O-O {[%clk
0:02:56.3]} 12... c5 {[%clk 0:02:56.5]} 13. dxc5 {[%clk 0:02:55.8]} 13... Qc7
{[%clk 0:02:56.4]} 14. g4 {[%clk 0:02:54.4]} 14... Nxc5 {[%clk 0:02:48.3]} 15.
g5 {[%clk 0:02:40]} 15... Bxb2+ {[%clk 0:02:46.8]} 16. Kxb2 {[%clk 0:02:26.4]}
16... Na4+ {[%clk 0:02:45.9]} 17. Kc1 {[%clk 0:02:05.3]} 17... Nc3 {[%clk
0:02:42.9]} 18. Qd2 {[%clk 0:01:53.3]} 18... Bxf3 {[%clk 0:02:40.6]} 19. Rdg1
{[%clk 0:01:50]} 19... Bxh1 {[%clk 0:02:34.8]} 20. gxh6 {[%clk 0:01:49.7]} 20...
g6 {[%clk 0:02:13.4]} 21. h5 {[%clk 0:00:46.4]} 21... Be4 {[%clk 0:02:02.3]} 22.
hxg6 {[%clk 0:00:40.4]} 22... Bxg6 {[%clk 0:01:57.5]} 23. Bxg6 {[%clk
0:00:19.6]} 23... fxg6 {[%clk 0:01:47.5]} 24. Rxg6+ {[%clk 0:00:19.7]} 24... Kh8
{[%clk 0:01:39.5]} 25. Bd4+ {[%clk 0:00:20]} 25... e5 {[%clk 0:01:39.6]} 26.
Bxc3 {[%clk 0:00:20.7]} 26... Rad8 {[%clk 0:01:28.3]} 27. Qe3 {[%clk 0:00:19.8]}
27... Rf5 {[%clk 0:01:11]} 28. Rg7 {[%clk 0:00:17.1]} 28... Qd6 {[%clk
0:01:00.7]} 29. Qe4 {[%clk 0:00:16.4]} 29... Rdf8 {[%clk 0:00:28.2]} 30. Rxa7
{[%clk 0:00:11.6]} 30... Rg8 {[%clk 0:00:25.7]} 31. Kb2 {[%clk 0:00:11.5]} 31...
Qg6 {[%clk 0:00:22.3]} 32. Bxe5+ {[%clk 0:00:09.6]} 32... Rg7 {[%clk 0:00:15]}
33. hxg7+ {[%clk 0:00:08.7]} 33... Kg8 {[%clk 0:00:12.5]} 34. Ra8+ {[%clk
0:00:08.5]} 34... Kf7 {[%clk 0:00:10.5]} 35. Rf8+ {[%clk 0:00:08]} 35... Ke6
{[%clk 0:00:08.5]} 36. Qxf5+ {[%clk 0:00:08.6]} 36... Qxf5 {[%clk 0:00:08.5]}
37. Rxf5 {[%clk 0:00:09.3]} 37... Kxf5 {[%clk 0:00:08.4]} 38. g8=Q {[%clk
0:00:08.7]} 38... Ke4 {[%clk 0:00:09.3]} 39. Bc7 {[%clk 0:00:08]} 39... b5
{[%clk 0:00:10.2]} 40. Qb3 {[%clk 0:00:07.4]} 40... b4 {[%clk 0:00:11.1]} 41.
Qxb4+ {[%clk 0:00:07]} 41... Kd5 {[%clk 0:00:12]} 42. a4 {[%clk 0:00:07.9]}
42... Ke6 {[%clk 0:00:09.9]} 43. a5 {[%clk 0:00:08.8]} 43... Kd7 {[%clk
0:00:10.8]} 44. a6 {[%clk 0:00:09.7]} 44... Kc8 {[%clk 0:00:11.7]} 45. a7 {[%clk
0:00:10.6]} 45... Kd7 {[%clk 0:00:11.3]} 46. a8=Q {[%clk 0:00:11.5]} 46... Ke6
{[%clk 0:00:11.5]} 47. Qe8+ {[%clk 0:00:11.2]} 47... Kf5 {[%clk 0:00:12.4]} 48.
Qf4# {[%clk 0:00:11.3]} 1-0